[Event "DSOL-KO 2022"]
[Site "Germany"]
[Date "2022.05.10"]
[Round "2"]
[White "Neumeier, Valentina"]
[Black "Stegert, Noah Niclas"]
[Result "0-1"]
[ECO "C65"]
[WhiteElo "1835"]
[BlackElo "1503"]
[Annotator "NA RC COMBH"]
[PlyCount "74"]
[EventDate "2022.01.31"]
[EventType "team-tourn"]
[EventCountry "GER"]
[SourceTitle "playchess.com"]
[Source "ChessBase"]
[SourceQuality "1"]
[WhiteTeam "SK Kelheim II"]
[BlackTeam "SC Agon Neumünster"]
[TimeControl "2700+15"]

1. e4 e5 2. Nf3 Nf6 3. Nc3 d6 4. h3 Nc6 5. Bb5 Bd7 6. d3 h6 7. Be3 a6 8. Ba4 b5 9. Bb3 Na5 10. O-O Be7 11. Qd2 Nxb3 12. axb3 c5 13. Ne2 O-O 14. Ng3 b4 15. c3 a5 16. Nh4 {[#]} (16. cxb4 $14 cxb4 17. d4) 16... Nh5 $1 17. Nxh5 Bxh4 18. Bxh6 gxh6 19. Qxh6 Qg5 20. Qxg5+ Bxg5 21. f4 exf4 22. Nxf4 Bxf4 23. Rxf4 Bb5 24. Raf1 f6 25. Rd1 a4 26. d4 $2 (26. cxb4 $17 cxb4 27. bxa4 Bxa4 28. Rd2) 26... axb3 27. dxc5 dxc5 $2 (27... bxc3 28. bxc3 b2) 28. Rd5 (28. c4 $142 Bxc4 29. Rc1) 28... bxc3 29. Rg4+ Kf7 30. Rxc5 cxb2 31. Rxb5 b1=Q+ 32. Kh2 b2 33. Rb7+ Ke8 34. Rgg7 Qxe4 35. Rxb2 Qe5+ 36. Kh1 Ra1+ 37. Rb1 Rxb1# 0-1

[Event "DSOL-KO 2022"]
[Site "Germany"]
[Date "2022.05.12"]
[Round "2"]
[White "Pellegrini, Thomas"]
[Black "Neldner, Frank"]
[Result "1-0"]
[ECO "B07"]
[WhiteElo "1812"]
[BlackElo "1702"]
[Annotator "NA RC COMBH"]
[PlyCount "33"]
[EventDate "2022.01.31"]
[EventType "team-tourn"]
[EventCountry "GER"]
[SourceTitle "playchess.com"]
[Source "ChessBase"]
[SourceQuality "1"]
[WhiteTeam "Hamburger SK V"]
[BlackTeam "Vohwinkeler SC"]
[TimeControl "2700+15"]

1. c4 e5 2. Nc3 Nf6 3. e4 d6 4. h3 Be7 5. g3 Be6 6. d3 Nc6 7. Nge2 Qd7 8. Nd5 Nd4 9. Bg2 Nxe2 10. Qxe2 c6 11. Nxe7 Qxe7 12. O-O Qd7 13. Kh2 O-O-O ({Better is} 13... Qe7) 14. f4 exf4 15. Bxf4 $18 h6 16. e5 dxe5 17. Qxe5 1-0

[Event "DSOL-KO 2022"]
[Site "Germany"]
[Date "2022.05.11"]
[Round "2"]
[White "Korf, Joel"]
[Black "Henkel, Maik"]
[Result "0-1"]
[ECO "B18"]
[WhiteElo "1809"]
[BlackElo "2008"]
[Annotator "TA"]
[PlyCount "110"]
[EventDate "2022.01.31"]
[EventType "team-tourn"]
[EventCountry "GER"]
[SourceTitle "playchess.com"]
[Source "ChessBase"]
[SourceQuality "1"]
[TimeControl "2700+15"]

{[%evp 11,109,10,27,20,9,-15,11,-15,-14,-63,-97,-76,-69,-68,-72,-73,-75,-75,-76,-118,-111,-107,-96,-108,-93,-155,-77,-90,-71,-532,-526,-520,-514,-512,-466,-514,-512,-636,-645,-681,-672,-668,-661,-647,-622,-695,-656,-626,-614,-980,-970,-982,-969,-907,-907,-871,-832,-885,-879,-1023,-779,-29978,-29979,-29979,-29980,-29979,-29980,-29980,-29981,-29981,-29981,-29982,-29981,-29981,-29980,-29983,-29984,-29985,-29986,-29988,-29988,-29988,-29988,-29989,-29989,-29991,-29992,-29992,-29993,-29993,-29994,-29995,-29996,-29996,-29997,-29997,-29998,-29998,-29999,-29999]} 1. e4 c6 2. d4 d5 3. Nc3 dxe4 4. Nxe4 Bf5 5. Ng3 Bg6 6. Nf3 Nf6 7. Bg5 {B18: Classical Caro-Kann: 4...Bf5 sidelines.} e6 8. Nh4 Nbd7 9. Nxg6 {The position is equal.} hxg6 10. c4 (10. c3 $11) 10... Bb4+ $15 11. Bd2 Qa5 {[%cal Od7c5]} 12. a3 Bxd2+ 13. Qxd2 Qxd2+ 14. Kxd2 c5 {[#]} 15. Kc3 $146 ({Predecessor:} 15. dxc5 Nxc5 16. Re1 O-O-O+ 17. Kc2 Rh4 18. f3 Nfd7 19. b4 Na4 20. c5 Nb8 21. Bb5 Nxc5 22. bxc5 {1-0 (49) Yip,C (2420)-Ippolito,D (2369) Chess.com INT 2020}) 15... cxd4+ 16. Kxd4 Rh4+ 17. Kc3 Rc8 $36 {[%mdl 2048] Keeping White busy.} 18. Rd1 (18. b3 $142) 18... Ne5 ({Black should try} 18... b5 {[%cal Rb5c4]} 19. b3 bxc4 20. Bxc4 Ne5) 19. b3 $17 b5 {[%cal Rb5c4] Black is more active.} 20. Rd4 {[%mdl 8192] Now White is beyond hope.} (20. Re1 $17 {is more resistant.} Ned7 21. f3) 20... Nd5+ $19 21. Rxd5 exd5 22. Be2 dxc4 23. bxc4 Nxc4 24. Kb4 a5+ 25. Kxb5 Nxa3+ 26. Kxa5 Nc4+ 27. Ka6 Rb8 {...Nd6 is the strong threat.} 28. Re1 Kf8 {Strongly threatening ...Nd6.} 29. Bd3 {[#]} Ne5 $1 {[%mdl 512] ( -> ...Ra4#)} 30. Rxe5 (30. Bb5 Nd3) 30... Ra4+ 31. Ra5 Ra8+ 32. Kb6 R8xa5 33. Bb5 Ra2 {Hoping for ...Ra8.} 34. Ne4 f5 35. Nc3 R2a3 36. Nb1 {[#]} Rxb5+ $1 {Black mates.} 37. Kxb5 {KR-KN} Rb3+ 38. Kc5 Rxb1 {KR-K3P} 39. Kd4 Re1 40. Kd3 Kf7 41. Kd2 Re8 42. Kd3 Kf6 43. f3 g5 44. g3 f4 45. g4 Rh8 46. Ke4 Rxh2 {KR-KPP} 47. Kd3 Rh3 48. Ke2 Ke5 49. Kf2 Rh2+ 50. Kf1 Kd4 51. Kg1 Ra2 52. Kf1 Ke3 53. Kg1 Kxf3 54. Kh1 Kg3 {[%cal Ra2a1]} 55. Kg1 Ra1# {Weighted Error Value: White=0.82/Black=0.18 (very precise)} 0-1

[Event "DSOL-KO 2022"]
[Site "Germany"]
[Date "2022.05.10"]
[Round "2"]
[White "Ramming, Moritz"]
[Black "Stegert, Jonas"]
[Result "0-1"]
[ECO "B76"]
[WhiteElo "1796"]
[BlackElo "1813"]
[Annotator "NA RC COMBH"]
[PlyCount "56"]
[EventDate "2022.01.31"]
[EventType "team-tourn"]
[EventCountry "GER"]
[SourceTitle "playchess.com"]
[Source "ChessBase"]
[SourceQuality "1"]
[WhiteTeam "SK Kelheim II"]
[BlackTeam "SC Agon Neumünster"]
[TimeControl "2700+15"]

1. e4 c5 2. Nf3 Nc6 3. d4 cxd4 4. Nxd4 Nf6 5. Nc3 g6 6. Be3 Bg7 7. Bc4 O-O 8. Bb3 d6 9. f3 Bd7 10. O-O {10.h4 gains popularity.} a6 11. Nxc6 Bxc6 12. Bd4 Rc8 {[#]} 13. Qd3 $146 ({Predecessor:} 13. Qd2 Qa5 14. Rad1 Rfd8 15. Kh1 b5 16. Bxf6 Bxf6 17. Nd5 Qxd2 18. Nxf6+ Kg7 19. Nh5+ gxh5 20. Rxd2 {½-½ (61) Bravo Sedamanos,H-Emma,J Pinamar 1973}) 13... Qa5 14. a4 Rfd8 15. Nd5 Bxd5 16. exd5 Rd7 17. Bc3 Qb6+ 18. Kh1 Ne8 19. a5 Qc5 20. Bxg7 Nxg7 21. Ra4 Rdc7 22. Qd2 Nf5 23. Re1 Qb5 24. Qg5 $2 (24. Rae4 $16 {keeps the pressure on.}) 24... Rxc2 25. Bxc2 Rxc2 26. Raa1 $19 Qxd5 ({Stronger than} 26... Rxb2 27. Qc1 $15) 27. b4 Qb5 28. g4 Ng3+ 0-1

[Event "DSOL-KO 2022"]
[Site "Germany"]
[Date "2022.05.13"]
[Round "2"]
[White "Schroeder, Christoph"]
[Black "Pruefer, Friedbert"]
[Result "1/2-1/2"]
[ECO "B23"]
[WhiteElo "1787"]
[BlackElo "1783"]
[Annotator "NA RC COMBH"]
[PlyCount "72"]
[EventDate "2022.01.31"]
[EventType "team-tourn"]
[EventCountry "GER"]
[SourceTitle "playchess.com"]
[Source "ChessBase"]
[SourceQuality "1"]
[WhiteTeam "SK Johanneum Eppendorf I"]
[BlackTeam "TSG Taucha I"]
[TimeControl "2700+15"]

1. e4 Nc6 2. Nc3 Nd4 3. Nf3 c5 4. Nxd4 cxd4 5. Ne2 e5 6. c3 Qf6 7. d3 Bc5 8. cxd4 exd4 9. a3 Ne7 10. Ng3 O-O 11. Be2 d5 12. O-O Bb6 13. Bf3 Qd6 14. Bd2 Be6 15. Re1 Rfc8 16. exd5 Nxd5 17. Ne4 Qd7 18. Ng5 Bf5 19. Qb3 Nf6 20. Re5 Bg6 21. Rae1 Re8 22. Rxe8+ Rxe8 23. Rxe8+ Qxe8 24. Kf1 h6 25. Nh3 Qd7 26. Nf4 Bf5 27. h3 g5 28. Nh5 Nxh5 29. Bxh5 Bxh3 30. Qxf7+ Qxf7 31. Bxf7+ Kxf7 32. gxh3 Ke6 33. f4 Bd8 34. Ke2 gxf4 35. Bxf4 h5 36. Kf3 Kf5 1/2-1/2

[Event "DSOL-KO 2022"]
[Site "Germany"]
[Date "2022.05.09"]
[Round "2"]
[White "Herzog, Olaf"]
[Black "Henrich, Benno"]
[Result "0-1"]
[ECO "A00"]
[WhiteElo "1785"]
[BlackElo "1467"]
[Annotator "NA COMBH"]
[PlyCount "76"]
[EventDate "2022.01.31"]
[EventType "team-tourn"]
[EventCountry "GER"]
[SourceTitle "playchess.com"]
[Source "ChessBase"]
[SourceQuality "1"]
[WhiteTeam "SV Königsbrück I"]
[BlackTeam "SC Landskrone"]
[TimeControl "2700+15"]

1. Nc3 d5 2. e4 dxe4 3. Nxe4 Bf5 4. Ng3 Bg6 5. Bc4 e6 6. d4 Nf6 7. Nf3 Nbd7 8. c3 Be7 9. O-O O-O 10. Re1 Re8 11. Bf4 a6 12. h3 Rc8 13. Rc1 c5 14. Bd3 Bxd3 15. Qxd3 cxd4 16. cxd4 Nd5 17. Bd2 N7f6 18. a3 b5 19. Ne5 Qb6 20. Rxc8 Rxc8 21. Rc1 Rd8 22. Nc6 Re8 23. Nxe7+ Nxe7 24. Ne4 Ned5 25. g4 Nxe4 26. Qxe4 Nf6 27. Qf4 Rd8 28. Be3 Nd5 29. Qe5 b4 30. g5 a5 31. h4 bxa3 32. bxa3 g6 33. Rc5 a4 34. Bd2 Qb3 35. Ba5 Rf8 36. Qg3 Qd1+ 37. Kg2 Qxd4 38. Rc2 Qe4+ 0-1

[Event "DSOL-KO 2022"]
[Site "Germany"]
[Date "2022.05.09"]
[Round "2"]
[White "Bahr, Torsten"]
[Black "Andresen, Marc"]
[Result "1/2-1/2"]
[ECO "A00"]
[WhiteElo "1782"]
[BlackElo "1856"]
[Annotator "NA RC COMBH"]
[PlyCount "33"]
[EventDate "2022.01.31"]
[EventType "team-tourn"]
[EventCountry "GER"]
[SourceTitle "playchess.com"]
[Source "ChessBase"]
[SourceQuality "1"]
[WhiteTeam "SC Wittstock I"]
[BlackTeam "SC Caissa Falkensee I"]
[TimeControl "2700+15"]

1. Nc3 d5 2. e4 d4 3. Nce2 e5 4. Ng3 Nf6 5. Nf3 Nc6 6. Bb5 Bd6 7. d3 a6 8. Bxc6+ bxc6 9. O-O O-O 10. Qe2 h6 11. Nh4 Nd5 12. Nhf5 Nf4 13. Bxf4 exf4 14. Nxd6 cxd6 15. Nf5 Bxf5 16. exf5 Qg5 17. g4 1/2-1/2

[Event "DSOL-KO 2022"]
[Site "Germany"]
[Date "2022.05.10"]
[Round "2"]
[White "Schulz, Michael"]
[Black "Gerland, Felix"]
[Result "0-1"]
[ECO "A45"]
[WhiteElo "1778"]
[BlackElo "1950"]
[Annotator "TA"]
[PlyCount "108"]
[EventDate "2022.01.31"]
[EventType "team-tourn"]
[EventCountry "GER"]
[SourceTitle "playchess.com"]
[Source "ChessBase"]
[SourceQuality "1"]
[WhiteTeam "SC Zitadelle Spandau"]
[BlackTeam "SK Rinteln I"]
[TimeControl "2700+15"]

{[%evp 9,108,22,30,26,37,30,39,6,34,26,57,60,38,0,0,-26,-9,-17,12,-38,-34,-83,-63,-82,-74,-80,-77,-102,-31,-34,0,-121,-49,-52,-51,-46,-70,-54,-48,-111,-127,-422,-313,-327,-329,-321,-298,-343,-349,-332,-334,-333,-300,-391,-305,-310,-320,-299,-384,-378,-351,-809,-793,-799,-782,-2672,-2551,-1860,-605,-518,-442,-683,-577,-582,-534,-558,-545,-563,-506,-764,-776,-933,-890,-1260,-1226,-6187,-5826,-5932,-5580,-2341,-750,-29991,-915,-29974,-29975,-29991,-29992,-29992,-29992,-29992,-29993]} 1. d4 Nf6 2. Bg5 c5 3. d5 g6 4. Nc3 Bg7 5. e4 O-O 6. Qd2 {A45: Trompowsky Attack.} d6 7. Bh6 e6 8. Bxg7 {White is slightly better.} Kxg7 9. dxe6 Bxe6 10. O-O-O Qa5 11. a3 (11. Qxd6 Nc6 12. a3 Rfd8 $15) (11. h4 $5 {[%cal Rh4h5]}) 11... Nc6 12. Nf3 Rad8 {[#]} 13. Bb5 $146 ({Predecessor:} 13. Ng5 d5 14. exd5 Bxd5 15. Nxd5 Qxd2+ 16. Rxd2 Rxd5 17. Rxd5 Nxd5 18. g3 Nf6 19. Bg2 {1-0 (66) Ponomariov,R (2744)-Eljanov,P (2742) Moscow 2010}) 13... Ne5 14. Ng5 (14. h4 $11) 14... Bc4 $15 15. f4 (15. Bxc4 $15 Nxc4 16. Qd3) 15... Bxb5 $17 {Black is more active.} 16. fxe5 dxe5 17. Qf2 Bc4 18. Qg3 Qc7 (18... Rfe8 $17 {...b5 is the strong threat.} 19. Rxd8 Qxd8) 19. b3 $15 Ba6 20. Nf3 (20. Nd5 $1 $11 Nxd5 21. exd5) 20... Rxd1+ (20... Qa5 $17 21. Nh4 Qxa3+ 22. Kb1 Rde8 23. Nf5+ Kh8) 21. Rxd1 Re8 22. Qg5 {[%cal Og5f6]} Qe7 23. Nh4 $1 Kh8 24. Kb2 ({White should play} 24. Rd2 $1 $15) 24... b6 $36 {[%mdl 2048] Keeping White busy.} 25. Qh6 $2 {[%mdl 8192] Now White is beyond hope.} (25. Qd2 $17 {keeps fighting.}) 25... Ng4 26. Qd2 Qxh4 27. Qd7 Rf8 28. Qxa7 Ne3 {[%cal Bg4e3,Be3g2,Bg2f4,Bf4e6][%mdl 32]} ({Weaker is} 28... Nxh2 29. Qxa6 c4 30. Qxc4 $14 (30. Qxb6 cxb3 31. cxb3 Kg7 $11)) 29. Rc1 Bc8 {aiming for ...Qd8.} ({Worse is} 29... Qxh2 30. Qxa6 Nxg2 31. Qxb6 $11) 30. Qxb6 Qe7 ({Not} 30... Qxh2 31. Qxc5 Kg7 32. Qxe3 $16) 31. h3 Be6 32. g4 Rc8 33. Re1 {[#]} Ng2 34. Rd1 Nf4 35. Nd5 $2 (35. Nb5) 35... Bxd5 $19 36. exd5 e4 37. d6 Qe5+ 38. Kb1 Ne6 (38... Nd5 $142 39. Rxd5 Qxd5) 39. Qb7 Rf8 40. Qe7 (40. d7 $142 e3 41. Qd5 Qxd5 42. Rxd5) 40... Kg7 {Threatens to win with ...e3.} 41. d7 Qf6 42. Qd6 Rd8 {And now ...e3 would win.} 43. h4 Qxh4 44. a4 (44. Qe5+ $142 Qf6 45. Qxe4) 44... Qxg4 45. Rf1 Qg5 {Hoping for ...e3.} 46. a5 e3 {[%cal Be4e3,Be3e2][%mdl 32]} 47. a6 e2 48. Re1 Nd4 {[%cal Od8d7] ( -> ...Rxd7!)} 49. a7 Nb5 50. Qb6 Nxa7 51. Qxa7 Qd2 {[%csl LRd7,LRe1] Black mates.} 52. Qc7 Qxe1+ 53. Kb2 Qh4 54. Qe5+ Qf6 {Weighted Error Value: White=0.60/Black=0.31} 0-1

[Event "DSOL-KO 2022"]
[Site "Germany"]
[Date "2022.05.09"]
[Round "2"]
[White "Bodnar, David"]
[Black "Mercier, David"]
[Result "1-0"]
[ECO "E90"]
[WhiteElo "1748"]
[BlackElo "1845"]
[Annotator "NA COMBH"]
[PlyCount "78"]
[EventDate "2022.01.31"]
[EventType "team-tourn"]
[EventCountry "GER"]
[SourceTitle "playchess.com"]
[Source "ChessBase"]
[SourceQuality "1"]
[WhiteTeam "Findorffer SF"]
[BlackTeam "ESV Rot-Weiß Göttingen III"]
[TimeControl "2700+15"]

1. d4 Nf6 2. Nf3 g6 3. c4 Bg7 4. Nc3 O-O 5. e4 d6 6. Bd3 Nbd7 7. O-O e5 8. d5 Nc5 9. Bc2 a5 10. Bg5 h6 11. Be3 Ng4 12. Bxc5 dxc5 13. Qe2 Nf6 14. Nxe5 Nxd5 15. exd5 Re8 16. f4 f6 17. Bxg6 Re7 18. Nf7 Rxf7 19. Bxf7+ Kxf7 20. f5 Bd7 21. Rae1 Bf8 22. Qh5+ Kg8 23. Qg6+ Bg7 24. Re3 Qf8 25. Rfe1 a4 26. Re7 Rd8 27. Rxd7 Rxd7 28. Re8 Rd8 29. Rxf8+ Rxf8 30. Nxa4 b6 31. Nc3 Kh8 32. Nb5 Rg8 33. Nxc7 Bf8 34. Qxf6+ Bg7 35. Qxb6 Bd4+ 36. Kf1 Rg4 37. Qxh6+ Kg8 38. Ne6 Re4 39. f6 Rh4 1-0

[Event "DSOL-KO 2022"]
[Site "Germany"]
[Date "2022.05.12"]
[Round "2"]
[White "Kasims, Stefans"]
[Black "Schmitt, Carsten"]
[Result "1-0"]
[ECO "C00"]
[WhiteElo "1747"]
[BlackElo "1521"]
[Annotator "NA RC COMBH"]
[PlyCount "65"]
[EventDate "2022.01.31"]
[EventType "team-tourn"]
[EventCountry "GER"]
[SourceTitle "playchess.com"]
[Source "ChessBase"]
[SourceQuality "1"]
[WhiteTeam "SU Ebersberg-Grafing"]
[BlackTeam "SV Bergwinkel I"]
[TimeControl "2700+15"]

1. e4 e6 2. d3 d5 3. Qe2 Be7 4. Nf3 Nf6 5. g3 c5 6. Bg2 Nc6 7. O-O b5 8. e5 Nd7 9. c4 bxc4 10. dxc4 d4 11. h4 Qc7 12. Bf4 O-O 13. a3 a5 14. Nbd2 a4 15. g4 Rb8 16. Rab1 Na5 17. Ng5 h6 18. Ngf3 Ba6 19. h5 Nb6 20. Rfc1 Rfd8 21. g5 d3 22. Qe4 Bb7 23. Qe3 Ba6 24. gxh6 Nbxc4 25. Nxc4 Nxc4 26. Rxc4 Bxc4 27. Nd2 Ba2 28. Qg3 Bf8 29. hxg7 Bxg7 30. h6 f5 31. exf6 Qf7 32. fxg7 Bxb1 33. Be4 1-0

[Event "DSOL-KO 2022"]
[Site "Germany"]
[Date "2022.05.09"]
[Round "2"]
[White "Seitz, Manuel"]
[Black "Matthes, Benjamin"]
[Result "1/2-1/2"]
[ECO "B05"]
[WhiteElo "1745"]
[BlackElo "1525"]
[Annotator "NA COMBH"]
[PlyCount "172"]
[EventDate "2022.01.31"]
[EventType "team-tourn"]
[EventCountry "GER"]
[SourceTitle "playchess.com"]
[Source "ChessBase"]
[SourceQuality "1"]
[WhiteTeam "SC Caissa Falkensee I"]
[BlackTeam "SC Wittstock I"]
[TimeControl "2700+15"]

1. e4 Nf6 2. e5 Nd5 3. d4 d6 4. exd6 cxd6 5. Nf3 Bg4 6. Bc4 Nf6 7. O-O e6 8. Bf4 Be7 9. c3 O-O 10. Nbd2 Nc6 11. h3 Bh5 12. Re1 a6 13. a4 Qd7 14. Nf1 d5 15. Bb3 Ne4 16. g4 Bg6 17. h4 h5 18. Ne5 Nxe5 19. dxe5 Bxh4 20. Be3 hxg4 21. Qxg4 Qe7 22. Re2 Bg5 23. f4 Bf5 24. Qf3 Bh6 25. Rh2 Rac8 26. Ng3 Nxg3 27. Qxg3 Bg6 28. Rc1 d4 29. Bxd4 Rfd8 30. Be3 Kh7 31. Bc2 f5 32. exf6 Qxf6 33. Bd4 Rxd4 34. cxd4 Qxd4+ 35. Qf2 Qxf2+ 36. Rxf2 Bxc2 37. Rfxc2 Rxc2 38. Rxc2 Bxf4 39. Rc4 Be3+ 40. Kg2 e5 41. a5 b6 42. axb6 Bxb6 43. Rc6 Bd4 44. b4 Kg8 45. Rxa6 Kf7 46. b5 Ke7 47. Ra3 Kd7 48. Kf3 Kc7 49. Ra6 Kb7 50. Re6 Kc7 51. Kg4 Kb7 52. Kf5 Kc7 53. Ke4 Kb7 54. Kd5 Kc7 55. Rg6 Bb2 56. Rxg7+ Kb6 57. Kc4 e4 58. Re7 e3 59. Rxe3 Bc1 60. Re6+ Kb7 61. Kd5 Bf4 62. Rc6 Be3 63. Ke6 Bf2 64. Kd7 Bg3 65. Ke8 Bf4 66. Kf7 Bg3 67. Rg6 Bf4 68. Re6 Bg3 69. Kf6 Bf4 70. Kf5 Bg3 71. Ke4 Bf2 72. Kd5 Bg3 73. Rf6 Bh2 74. Kc4 Bg1 75. Rg6 Be3 76. Rg7+ Kb6 77. Re7 Bf2 78. Re8 Bg3 79. Rg8 Bf4 80. Rg4 Be5 81. Rg6+ Kb7 82. Kc5 Bb2 83. Rg3 Bf6 84. Re3 Bd8 85. b6 Bxb6+ 86. Kd5 Bxe3 1/2-1/2

[Event "DSOL-KO 2022"]
[Site "Germany"]
[Date "2022.05.11"]
[Round "2"]
[White "Wissen, Jonas"]
[Black "Seum, Ferdinand"]
[Result "0-1"]
[ECO "D00"]
[WhiteElo "1733"]
[BlackElo "1906"]
[Annotator "TA"]
[PlyCount "70"]
[EventDate "2022.01.31"]
[EventType "team-tourn"]
[EventCountry "GER"]
[SourceTitle "playchess.com"]
[Source "ChessBase"]
[SourceQuality "1"]
[TimeControl "2700+15"]

{[%evp 9,69,0,10,-1,32,5,31,23,10,-10,6,-20,18,-528,-522,-513,-522,-507,-496,-495,-470,-481,-462,-578,-578,-578,-554,-563,-566,-554,-368,-369,-353,-29987,-29946,-12803,-6395,-29991,-29992,-29992,-29990,-29990,-29985,-29991,-29992,-29992,-29990,-29998,-29981,-29970,-1218,-29995,-29996,-29996,-29995,-29995,-29995,-29995,-29996,-29998,-29999,-29999]} 1. d4 d5 2. Nc3 c6 3. Nf3 Bf5 4. e3 e6 5. Bd3 Bg6 {[#]} 6. e4 $146 {D00: 1 d4 d5: Unusual lines.} ({Predecessor:} 6. Bxg6 hxg6 7. Qd3 f5 8. Ne5 Qg5 9. g3 Qh5 10. Qe2 Qh7 11. Bd2 Nf6 12. O-O-O {0-1 (69) Deleja Hotko,K-Stingl,K (1895) Feffernitz 2010}) 6... dxe4 7. Bxe4 Bd6 8. Be3 {White is slightly better.} Nf6 9. Bg5 Nbd7 10. Qe2 Qb6 11. Qd2 $2 {[%mdl 8192]} Nxe4 $19 12. Nxe4 Bxe4 13. c3 Bxf3 14. gxf3 f6 15. Bh4 O-O-O 16. Rg1 g5 17. Bg3 {Inhibits Bf4.} Bxg3 18. fxg3 {[#]} Ne5 $3 {[%mdl 512]} 19. Qe2 Ng6 20. Qxe6+ Kb8 21. Qxf6 $2 (21. O-O-O $19) 21... Rhe8+ 22. Kf1 Qxb2 {[%csl Ge8][%cal Rb2e2] [#]} 23. Re1 {Inhibits Qe2+.} Rxe1+ 24. Kxe1 Re8+ 25. Kd1 Qb1+ 26. Kd2 Qxg1 27. Qd6+ Ka8 28. Qd7 Qe3+ 29. Kc2 Qe6 (29... Qe2+ $142 30. Kb3 Rf8 31. Qg4 Qb5+ 32. Ka3 Qc4 33. Kb2 Re8 34. Qf5 Re2+ 35. Qc2 Rxc2+ 36. Kxc2 Qxa2+ 37. Kd3 Qxh2 38. Kc4 Qxg3 39. d5 cxd5+ 40. Kxd5 b5 41. Kc5 Qc7+ 42. Kd4 Qe5+ 43. Kd3 Nf4+ 44. Kc2 Qe2+ 45. Kb1 Nd3 46. Ka1 Qb2#) 30. Qxh7 Qxa2+ {Black mates.} 31. Kd1 Qb1+ 32. Kd2 Qe1+ 33. Kc2 Re2+ 34. Kb3 Qb1+ 35. Kc4 Qb5# {White did not feel at home in the position after the opening.  Weighted Error Value: White=1.14/Black=0.20 (precise)} 0-1

[Event "DSOL-KO 2022"]
[Site "Germany"]
[Date "2022.05.10"]
[Round "2"]
[White "Filipzik, Bernd"]
[Black "Roth, Niklas"]
[Result "0-1"]
[ECO "B33"]
[WhiteElo "1731"]
[BlackElo "2107"]
[Annotator "TA"]
[PlyCount "98"]
[EventDate "2022.01.31"]
[EventType "team-tourn"]
[EventCountry "GER"]
[SourceTitle "playchess.com"]
[Source "ChessBase"]
[SourceQuality "1"]
[WhiteTeam "SV Lurup Hamburg II"]
[BlackTeam "SF Ochtendung I"]
[TimeControl "2700+15"]

{[%evp 13,98,-53,-6,-149,-12,-131,-152,-147,-139,-435,-427,-439,-434,-539,-539,-540,-541,-536,-537,-516,-512,-544,-527,-553,-543,-575,-574,-575,-575,-575,-565,-572,-520,-568,-532,-667,-620,-720,-705,-800,-669,-669,-665,-664,-658,-664,-648,-886,-634,-614,-610,-657,-655,-1237,-1164,-1576,-1549,-1389,-1302,-1233,-1158,-29972,-29970,-29979,-29980,-29985,-29985,-29986,-29984,-29986,-29985,-29987,-29988,-29988,-29989,-29989,-29987,-29987,-29987,-29987,-29988,-29988,-29989,-29989,-29989,-29990,-29991]} 1. e4 c5 2. Nf3 Nc6 3. d4 cxd4 4. Nxd4 Nf6 5. Nc3 e5 6. Nf3 Bb4 7. Bd2 O-O (7... Bxc3 $15 {should be considered.} 8. Bxc3 Nxe4 9. Nxe5 Nxc3 10. Nxc6 dxc6 11. Qxd8+ Kxd8 12. bxc3 Be6) 8. Be2 {B33: Sicilian: Pelikan and Sveshnikov Variations.} (8. Nd5 $11 Bxd2+ 9. Nxd2) 8... Re8 ({Black should play} 8... Bxc3 $17 9. Bxc3 Nxe4) 9. O-O (9. Nd5 $11 Nxd5 10. exd5) 9... Bxc3 $17 10. Bxc3 {[#] Black is clearly better.} Nxe4 $146 ({Predecessor:} 10... d5 11. exd5 Nxd5 12. Bd2 e4 13. Ne1 Qf6 14. c4 Nc7 15. Bc3 Qe7 16. Nc2 Qg5 {½-½ (33) Alekhanov,J (960)-Knuepfer,T (840) Sebnitz 2009}) 11. Bd3 $2 {[%mdl 8192]} (11. Qd5 $17 {might work better.} Nxc3 12. bxc3) 11... Nxc3 $19 12. bxc3 e4 13. Bc4 exf3 ({Worse is} 13... b5 14. Bxf7+ Kxf7 15. Qd5+ Kg6 16. g4 $11) 14. Qxf3 Ne5 {[%csl LRc4,LRf3]} 15. Qd5 Nxc4 16. Qxc4 d5 17. Qd4 Be6 18. Rab1 Qc7 19. Qb4 b6 20. Rfe1 Rec8 21. Re3 Qc4 22. Qb2 Rd8 23. Rg3 Rac8 24. Qa3 Qc5 25. Qc1 d4 26. Qh6 Qe5 {[%cal Oe5g3] aiming for ...Qxg3!} 27. f4 {[#]} Qe3+ {[%mdl 512]} 28. Rxe3 {Black must now prevent Rg3.} gxh6 29. Rg3+ Kh8 30. Rb5 Rc5 31. Rxc5 bxc5 {[%cal Bb6c5,Bc5d4,Bd4d3][%mdl 32]} 32. cxd4 cxd4 {[%mdl 4096] Endgame KRB-KR} 33. a3 Bf5 {Prevents Rd3.} 34. Kf2 Bxc2 35. Ke1 d3 36. Kd2 Rg8 {[#] ( -> ...Rxg3)} 37. Rxg8+ Kxg8 {KB-KP. Black mates.} 38. g4 Kg7 39. h4 Kf6 40. Ke3 Ke6 41. a4 f6 {[%cal Bf7f6,Bf6f5][%mdl 32]} 42. a5 f5 43. g5 hxg5 44. hxg5 {KB-K3P} Kf7 45. Kd2 Kg6 46. Ke3 Kh5 47. Kd2 Kg4 48. Ke3 Kg3 49. Kd2 Kxf4 {White got outplayed after the opening.  Weighted Error Value: White=0.89/Black=0.23 (precise)} 0-1

[Event "DSOL-KO 2022"]
[Site "Germany"]
[Date "2022.05.11"]
[Round "2"]
[White "Krumschmidt, Michael"]
[Black "Reyes-Mantilla, Andraes Mauricio"]
[Result "0-1"]
[ECO "E30"]
[WhiteElo "1730"]
[BlackElo "1838"]
[Annotator "NA RC COMBH"]
[PlyCount "88"]
[EventDate "2022.01.31"]
[EventType "team-tourn"]
[EventCountry "GER"]
[SourceTitle "playchess.com"]
[Source "ChessBase"]
[SourceQuality "1"]
[TimeControl "2700+15"]

1. d4 Nf6 2. c4 e6 3. Nc3 Bb4 4. Bg5 c5 5. e3 Qa5 6. Bxf6 Bxc3+ 7. bxc3 Qxc3+ 8. Ke2 gxf6 9. Rc1 Qa3 10. Qd2 cxd4 11. exd4 Nc6 12. Nf3 b6 13. Rc3 Qa5 14. g3 Ba6 15. Bg2 d5 16. Rhc1 Rd8 17. Qb2 dxc4 18. Kf1 Nxd4 19. Nxd4 Rxd4 20. Kg1 Ke7 21. Ra3 c3 22. Raxc3 Rhd8 23. Bf3 R8d7 24. Rc7 Qb4 25. Qc2 Bd3 26. Rxd7+ Rxd7 27. Qc8 Be4 28. Be2 Qd2 29. Bb5 Rd8 30. Qc7+ Kf8 31. h4 h5 32. Ba4 Bf3 33. Qc4 Rd4 34. Qc8+ Kg7 35. Bb3 a5 36. Qc7 Rd7 37. Qc3 Be4 38. f3 Bxf3 39. Qxd2 Rxd2 40. Rc7 Kg6 41. Bc2+ f5 42. Bb3 Rg2+ 43. Kf1 Rxg3 44. Re7 Kf6 0-1